bitfinex-derivatives/quotes_BTCF0:USTF0_20250218
["timestamp","ask_amount","ask_price","bid_price","bid_amount"]
[1739898169954,0.07970905,94770.0,94769.0,0.00015828]
[1739898172050,0.02837,94770.0,94769.0,0.00015828]
[1739898173849,0.2394663,94770.0,94769.0,0.00015828]
[1739898174851,0.2487363,94770.0,94769.0,0.00015828]
[1739898175853,0.03764,94770.0,94769.0,0.00015828]
[1739898177447,0.2487363,94770.0,94769.0,0.00015828]
[1739898178957,0.03764,94770.0,94769.0,0.00015828]
[1739898179347,0.2487363,94770.0,94769.0,0.00015828]
[1739898180248,0.03764,94770.0,94769.0,0.00015828]
[1739898180656,0.2487363,94770.0,94769.0,0.00015828]
[1739898180856,0.6095363,94770.0,94769.0,0.00015828]
[1739898181854,0.211123,94758.0,94757.0,0.01087303]
[1739898182053,0.2111311,94755.0,94743.0,0.2472]
[1739898182561,0.727,94757.0,94743.0,0.2472]
[1739898182747,0.727,94757.0,94747.0,0.13132]
[1739898183361,0.727,94757.0,94749.0,0.2111429]
[1739898183957,0.727,94757.0,94750.0,0.001]
[1739898184555,0.727,94757.0,94749.0,0.01183429]
[1739898184750,0.727,94757.0,94749.0,0.001]
[1739898185059,0.00015828,94763.0,94753.0,0.3608]
[1739898185254,0.04221,94756.0,94755.0,0.2111297]
[1739898185454,0.04221,94756.0,94755.0,0.5719297]
[1739898185659,0.00015828,94763.0,94762.0,0.2111141]
[1739898185857,0.00015828,94763.0,94762.0,0.5719141]
[1739898186162,0.08698211,94770.0,94769.0,0.2110985]
[1739898186745,0.08698211,94770.0,94765.0,0.3608]
[1739898187269,0.03564,94770.0,94768.0,0.2110988]
[1739898187465,0.03764,94770.0,94769.0,0.2517]
[1739898188759,0.03764,94770.0,94769.0,0.5105]
[1739898189255,0.03764,94770.0,94769.0,0.52119751]
[1739898189460,0.03748171,94770.0,94769.0,0.52119751]
[1739898189760,0.04592171,94770.0,94769.0,0.52119751]
[1739898191164,0.04392171,94770.0,94769.0,0.52319751]
[1739898191656,0.04392171,94770.0,94769.0,0.52119751]
[1739898191657,0.01771,94770.0,94769.0,0.52119751]
[1739898191861,0.01771,94770.0,94769.0,0.52319751]
[1739898192760,0.02615,94770.0,94769.0,0.52319751]
[1739898193961,0.02615,94770.0,94769.0,0.002]
[1739898194358,0.02615,94770.0,94765.0,0.3608]
[1739898194559,0.02615,94770.0,94769.0,0.002]
[1739898194862,0.03684226,94770.0,94769.0,0.002]
[1739898195170,0.09017272,94770.0,94765.0,0.3608]
[1739898195459,0.08817272,94770.0,94765.0,0.3608]
[1739898195663,0.44897272,94770.0,94757.0,0.01065291]
[1739898195852,0.2111106,94764.0,94752.0,0.2517]
[1739898196052,0.3608,94754.0,94742.0,0.2595]
[1739898196262,0.3608,94754.0,94746.0,0.01239114]
[1739898196569,0.3608,94758.0,94746.0,0.00158296]
[1739898196867,0.2553,94763.0,94752.0,0.3608]
[1739898197165,0.2553,94763.0,94756.0,0.2111262]
[1739898197367,0.2553,94763.0,94752.0,0.3608]
[1739898197764,0.2553,94763.0,94760.0,0.3608]
[1739898197959,0.20601789,94770.0,94760.0,0.3608]
[1739898198159,0.02615,94770.0,94760.0,0.3608]
[1739898198467,0.001,94763.0,94760.0,0.3608]
[1739898198669,0.001,94763.0,94761.0,0.1312]
[1739898199264,0.001,94763.0,94762.0,0.2111141]
[1739898199958,0.02615,94770.0,94762.0,0.2111141]
[1739898200266,0.002,94763.0,94762.0,0.2111141]
[1739898200567,0.02637,94769.0,94762.0,0.2111141]
[1739898200773,0.002,94763.0,94762.0,0.2111141]
[1739898201162,0.02637,94769.0,94765.0,0.2111059]
[1739898201373,0.02637,94769.0,94768.0,0.3608]
[1739898201869,0.02837,94769.0,94768.0,0.3608]
[1739898202854,0.03764,94769.0,94768.0,0.3608]
[1739898203059,0.03764,94769.0,94768.0,0.492]
[1739898203256,0.03564,94769.0,94768.0,0.492]
[1739898203460,0.03864,94769.0,94768.0,0.492]
[1739898203857,0.03564,94769.0,94768.0,0.492]
[1739898204060,0.03964,94769.0,94768.0,0.492]
[1739898204457,0.03664,94769.0,94768.0,0.492]
[1739898205574,0.07385,94781.0,94780.0,0.211074]
[1739898205759,0.2475,94807.0,94791.0,0.2110495]
[1739898206075,0.2475,94807.0,94791.0,0.5718495]
[1739898206270,0.4827,94807.0,94791.0,0.3608]
[1739898206567,0.3608,94802.0,94791.0,0.3608]
[1739898206771,0.37610968,94801.0,94791.0,0.3608]
[1739898206977,0.44706075,94799.0,94791.0,0.3608]
[1739898207372,0.22173655,94792.0,94791.0,0.3618]
[1739898208776,0.004,94792.0,94791.0,0.3618]
[1739898208968,0.004,94792.0,94791.0,0.74372]
[1739898209375,0.0001049,94801.0,94799.0,0.2110317]
[1739898209578,0.0001049,94801.0,94799.0,0.5296417]
[1739898210875,0.102,94800.0,94799.0,0.5306417]
[1739898211074,0.102,94800.0,94799.0,0.3618]
[1739898211375,0.102,94800.0,94799.0,0.49292]
[1739898211569,0.3606,94800.0,94799.0,0.49292]
[1739898212167,0.3606,94800.0,94799.0,0.001]
[1739898212368,0.3606,94800.0,94786.0,0.92032]
[1739898212369,0.2110388,94796.0,94789.0,0.13112]
[1739898212574,0.73177921,94800.0,94782.0,0.00015828]
[1739898212575,0.211048,94792.0,94782.0,0.00015828]
[1739898212772,0.33958543,94792.0,94782.0,0.00015828]
[1739898213085,0.12853743,94792.0,94782.0,0.00015828]
[1739898213468,0.12853743,94792.0,94789.0,0.001]
[1739898213674,0.2110461,94793.0,94789.0,0.001]
[1739898213884,0.2110461,94793.0,94782.0,0.00015828]
[1739898214473,0.00843,94795.0,94782.0,0.00015828]
[1739898214680,0.00843,94795.0,94785.0,0.3608]
[1739898215670,0.00843,94795.0,94789.0,0.001]
[1739898215981,0.00843,94795.0,94794.0,0.3608]
[1739898216179,0.00943,94795.0,94794.0,0.3608]
[1739898221986,0.00943,94795.0,94794.0,0.5718428]
[1739898224189,0.0358,94795.0,94794.0,0.5718428]
[1739898224589,0.0358,94795.0,94794.0,0.3608]
[1739898225099,0.0358,94795.0,94794.0,0.131]
[1739898225779,0.0358,94795.0,94794.0,0.14176769]
[1739898226081,0.0358,94795.0,94794.0,0.5718428]
[1739898226393,0.0358,94795.0,94794.0,0.3608]
[1739898226587,0.0358,94795.0,94794.0,0.50226469]
[1739898226792,0.0358,94795.0,94794.0,0.37126469]
[1739898227290,0.0358,94795.0,94794.0,0.58230749]
[1739898227492,0.0358,94795.0,94794.0,0.37126469]
[1739898227878,0.0358,94795.0,94786.0,0.3608]
[1739898228079,0.0358,94795.0,94776.0,0.5994]
[1739898228286,0.12853743,94792.0,94780.0,0.3608]
[1739898228485,0.25545836,94799.0,94780.0,0.3608]
[1739898228784,0.2110392,94796.0,94782.0,0.01074098]
[1739898228980,0.2110392,94796.0,94782.0,0.00015828]
[1739898229385,0.12853743,94792.0,94782.0,0.00015828]
[1739898229585,0.2110551,94789.0,94782.0,0.00015828]
[1739898229786,0.2579,94788.0,94782.0,0.00015828]
[1739898229994,0.3608,94787.0,94782.0,0.00015828]
[1739898231386,0.2110673,94783.0,94782.0,0.00015828]
[1739898231882,0.05064,94786.0,94759.0,0.211119]
[1739898231883,0.2110801,94778.0,94759.0,0.211119]
[1739898232081,0.2448,94777.0,94773.0,0.01072835]
[1739898232281,0.25523173,94777.0,94773.0,0.01072835]
[1739898232486,0.2448,94777.0,94767.0,0.5719024]
[1739898233082,0.2448,94777.0,94767.0,0.57206068]
[1739898233580,0.2448,94777.0,94767.0,0.36095828]
[1739898233785,0.2110829,94776.0,94767.0,0.36095828]
[1739898235390,0.2110829,94776.0,94770.0,0.01057519]
[1739898235591,0.2448,94777.0,94770.0,0.01057519]
[1739898235783,0.2448,94777.0,94776.0,0.5718829]
[1739898237095,0.2458,94782.0,94776.0,0.3608]
[1739898237397,0.2458,94782.0,94781.0,0.2110718]
[1739898240502,0.02637,94784.0,94783.0,0.2110673]
[1739898241291,0.03481,94784.0,94783.0,0.2110673]
[1739898249492,0.03481,94784.0,94778.0,0.3608]
[1739898249797,0.4925,94783.0,94778.0,0.3608]
[1739898250191,0.4925,94783.0,94779.0,0.3608]
[1739898250494,0.211074,94780.0,94771.0,0.2195]
[1739898250704,0.2431,94779.0,94770.0,0.01069005]
[1739898250900,0.2431,94779.0,94767.0,0.36095828]
[1739898251409,0.3608,94773.0,94767.0,0.00015828]
[1739898251799,0.211095,94771.0,94769.0,0.1892263]
[1739898252005,0.58228882,94773.0,94769.0,0.1892263]
[1739898252505,0.2110798,94778.0,94771.0,0.3608]
[1739898253298,0.24325828,94779.0,94771.0,0.3608]
[1739898253899,0.00015828,94779.0,94778.0,0.2110785]
[1739898254611,0.00015828,94779.0,94772.0,0.2110899]
[1739898254820,0.36095828,94779.0,94769.0,0.1892263]
[1739898255306,0.36095828,94779.0,94772.0,0.2110904]
[1739898255508,0.00015828,94779.0,94773.0,0.3608]
[1739898255711,0.00015828,94779.0,94778.0,0.2110785]
[1739898256309,0.00015828,94779.0,94773.0,0.6001]
[1739898256515,0.00015828,94779.0,94773.0,0.8111895]
[1739898256815,0.00015828,94779.0,94773.0,0.4503895]
[1739898257404,0.00015828,94779.0,94773.0,0.2393]
[1739898257608,0.00844,94778.0,94769.0,0.3608]
[1739898257814,0.00844,94778.0,94770.0,0.1308]
[1739898258908,0.00844,94778.0,94771.0,0.1308]
[1739898258909,0.2110831,94776.0,94771.0,0.1308]
[1739898259111,0.469486,94775.0,94762.0,0.01046206]
[1739898259310,0.2584,94775.0,94762.0,0.01046206]
[1739898259515,0.2584,94775.0,94763.0,0.2111113]
[1739898260215,0.2584,94775.0,94762.0,0.01046206]
[1739898260413,0.2584,94775.0,94764.0,0.2111095]
[1739898262113,0.0422,94774.0,94764.0,0.2111095]
[1739898262413,0.0422,94774.0,94762.0,0.01046206]
[1739898262709,0.0422,94774.0,94759.0,0.3608]
[1739898263111,0.3608,94766.0,94760.0,0.13076]
[1739898263418,0.2484,94765.0,94760.0,0.13076]
[1739898263615,0.5001284,94765.0,94752.0,0.3608]
[1739898263912,0.5001284,94765.0,94747.0,0.2111464]
[1739898264212,0.2111099,94764.0,94750.0,0.2111403]
[1739898264517,0.2111173,94761.0,94749.0,0.00015828]
[1739898264707,0.2111332,94754.0,94749.0,0.00015828]
[1739898265220,0.3608,94756.0,94749.0,0.00015828]
[1739898266419,0.254,94755.0,94749.0,0.00015828]
[1739898267106,0.254,94755.0,94751.0,0.2111364]
[1739898267610,0.254,94755.0,94750.0,0.3608]
[1739898267808,0.254,94755.0,94751.0,0.13076]
[1739898268113,0.254,94755.0,94753.0,0.2111326]
[1739898268317,0.2417,94760.0,94753.0,0.2111326]
[1739898269011,0.2503,94764.0,94760.0,0.2111186]
[1739898269718,0.2503,94764.0,94759.0,0.3608]
[1739898270214,0.2503,94764.0,94762.0,0.2111138]
[1739898270713,0.2503,94764.0,94760.0,0.2541]
[1739898271020,0.2503,94764.0,94759.0,0.3608]
[1739898271517,0.04062,94765.0,94759.0,0.3608]
[1739898271718,0.04062,94765.0,94761.0,0.2111144]
[1739898272014,0.04062,94765.0,94759.0,0.3608]
[1739898273517,0.04221,94764.0,94759.0,0.3608]
[1739898273706,0.04221,94764.0,94760.0,0.2111185]
[1739898273906,0.04221,94764.0,94751.0,0.2541]
[1739898274314,0.04221,94764.0,94753.0,0.2111334]
[1739898274508,0.04221,94764.0,94751.0,0.2541]
[1739898274704,0.12853743,94761.0,94750.0,0.3608]
[1739898274904,0.04221,94764.0,94750.0,0.3608]
[1739898275620,0.12853743,94760.0,94750.0,0.3608]
[1739898275807,0.12853743,94760.0,94749.0,0.00015828]
[1739898275808,0.3608,94754.0,94749.0,0.00015828]
[1739898276120,0.4985,94753.0,94749.0,0.00015828]
[1739898278019,0.21114,94751.0,94749.0,0.00015828]
[1739898278215,0.4985,94753.0,94749.0,0.00015828]
[1739898279925,0.2111366,94752.0,94749.0,0.00015828]
[1739898280223,0.4985,94753.0,94749.0,0.00015828]
[1739898280724,0.00844,94752.0,94749.0,0.00015828]
[1739898282326,0.02638,94751.0,94749.0,0.00015828]
[1739898287921,0.02638,94751.0,94749.0,0.36095828]
[1739898288134,0.02638,94751.0,94749.0,0.00015828]
[1739898289427,0.02638,94751.0,94750.0,0.5719408]
[1739898290324,0.02638,94751.0,94750.0,0.3608]
[1739898291633,0.02638,94751.0,94750.0,0.31859]
[1739898292627,0.02638,94751.0,94750.0,0.5297308]
[1739898294629,0.00744,94752.0,94751.0,0.2111386]
[1739898294827,0.00015828,94760.0,94759.0,0.2111208]
[1739898295029,0.00015828,94760.0,94759.0,0.5719208]
[1739898300231,0.00015828,94760.0,94759.0,0.3608]
[1739898300728,0.00015828,94760.0,94759.0,0.5719208]
[1739898302420,0.00015828,94760.0,94759.0,0.3608]
[1739898302822,0.00015828,94760.0,94759.0,0.5397108]
[1739898304432,0.02928428,94763.0,94759.0,0.84809]
[1739898304634,0.7116,94794.0,94787.0,0.2110568]
[1739898304829,0.7116,94794.0,94776.0,0.3608]
[1739898305136,0.3608,94788.0,94786.0,0.2110596]
[1739898305725,0.36923,94788.0,94786.0,0.2110596]
[1739898306433,0.36923,94788.0,94786.0,0.22176442]
[1739898307427,0.00843,94788.0,94786.0,0.22176442]
[1739898307936,0.00843,94788.0,94787.0,0.2378]
[1739898309131,0.00843,94788.0,94787.0,0.5996]
[1739898309829,0.028475,94792.0,94791.0,0.2110495]
[1739898310339,0.00015828,94796.0,94795.0,0.2110406]
[1739898311136,0.00015828,94796.0,94795.0,0.5718406]
[1739898311329,0.1,94800.0,94799.0,0.2110317]
[1739898311642,0.1,94800.0,94799.0,0.2108117]
[1739898312335,0.4608,94800.0,94796.0,0.4475]
[1739898312540,0.4608,94800.0,94795.0,0.001]
[1739898312734,0.68093,94799.0,94796.0,0.13036]
[1739898313042,0.67993,94799.0,94787.0,0.2378]
[1739898313231,0.3608,94788.0,94786.0,0.01070482]
[1739898313435,0.3608,94788.0,94782.0,0.2110686]
[1739898313630,0.3608,94788.0,94780.0,0.12853743]
[1739898314335,0.3608,94788.0,94785.0,0.2110622]
[1739898314530,0.3598,94788.0,94786.0,0.2110599]
[1739898315038,0.3608,94788.0,94786.0,0.2110599]
[1739898315635,0.3608,94788.0,94786.0,0.2120599]
[1739898319238,0.3608,94788.0,94786.0,0.001]
[1739898319442,0.3608,94788.0,94787.0,0.13028]
[1739898320138,0.3608,94788.0,94786.0,0.001]
[1739898320441,0.2110678,94783.0,94768.0,0.91972]
[1739898320645,0.3608,94787.0,94760.0,0.12853743]
[1739898320646,0.3608,94779.0,94760.0,0.12853743]
[1739898320838,0.3608,94779.0,94759.0,0.2407]
[1739898320839,0.3598,94779.0,94769.0,0.12853743]
[1739898321032,0.3598,94779.0,94778.0,0.0107453]
[1739898321337,0.3608,94779.0,94778.0,0.0107453]
[1739898321541,0.3598,94779.0,94778.0,0.0107453]
[1739898322143,0.3628,94779.0,94778.0,0.0107453]
[1739898323547,0.5075,94782.0,94778.0,0.0107453]
[1739898323548,0.0001049,94788.0,94778.0,0.0107453]
[1739898323752,0.6718,94798.0,94789.0,0.12853743]
[1739898323935,0.6718,94798.0,94793.0,0.2110444]
[1739898324136,0.6718,94798.0,94797.0,0.2110362]
[1739898324337,0.2186,94798.0,94797.0,0.2110362]
[1739898324539,0.234,94818.0,94792.0,0.3608]
[1739898324734,0.3608,94815.0,94800.0,0.48933743]
[1739898325043,0.3608,94815.0,94800.0,0.3608]
[1739898325238,0.3608,94807.0,94801.0,0.13024]
[1739898325949,0.3608,94804.0,94801.0,0.13024]
[1739898326146,0.452,94803.0,94801.0,0.14058859]
[1739898326344,0.452,94803.0,94801.0,0.01034859]
[1739898326649,0.452,94803.0,94798.0,0.00015828]
[1739898327049,0.452,94803.0,94800.0,0.001]
[1739898327253,0.452,94803.0,94801.0,0.1302]
[1739898327642,0.455,94803.0,94801.0,0.1312]
[1739898327842,0.455,94803.0,94802.0,0.211025]
[1739898328947,0.455,94803.0,94801.0,0.01172322]
[1739898329151,0.6862,94803.0,94801.0,0.01172322]
[1739898330342,0.6862,94803.0,94802.0,0.001]
[1739898330541,0.6862,94803.0,94802.0,0.13116]
[1739898330944,0.6862,94803.0,94802.0,0.13016]
[1739898331446,0.6832,94803.0,94802.0,0.13016]
[1739898331650,0.48651515,94803.0,94802.0,0.13116]
[1739898331852,0.48651515,94803.0,94802.0,0.001]
[1739898333456,0.003,94803.0,94802.0,0.001]
[1739898333647,0.003,94803.0,94802.0,0.34886]
[1739898333847,0.003,94803.0,94802.0,0.001]
[1739898334047,0.2282,94803.0,94802.0,0.13116]
[1739898334448,0.4471,94803.0,94802.0,0.13112]
[1739898334649,0.4471,94803.0,94802.0,0.001]
[1739898334851,0.676,94803.0,94802.0,0.001]
[1739898335053,0.676,94803.0,94802.0,0.13112]
[1739898335256,0.676,94803.0,94802.0,0.001]
[1739898335450,0.676,94803.0,94802.0,0.13012]
[1739898336754,0.675,94803.0,94802.0,0.13112]
[1739898337254,0.673,94803.0,94802.0,0.13012]
[1739898337555,0.675,94803.0,94802.0,0.13112]
[1739898338456,0.675,94803.0,94802.0,0.342145]
[1739898338651,0.002,94803.0,94802.0,0.212025]
[1739898339653,1.05514001,94820.0,94802.0,0.212025]
[1739898339654,0.02686,94805.0,94803.0,0.2110225]
[1739898340958,0.02986,94805.0,94803.0,0.2110225]
[1739898341853,0.00843,94804.0,94801.0,0.3608]
[1739898342352,0.00843,94804.0,94798.0,0.00015828]
[1739898342353,0.2323,94803.0,94798.0,0.00015828]
[1739898342547,0.452,94803.0,94798.0,0.00015828]
[1739898342957,0.3608,94799.0,94798.0,0.00015828]
[1739898343955,0.2110342,94798.0,94788.0,1.1088263]
[1739898344151,0.3608,94789.0,94788.0,0.1892263]
[1739898344353,0.3608,94789.0,94783.0,0.25319687]
[1739898344656,0.4496,94788.0,94783.0,0.25319687]
[1739898345864,0.4496,94788.0,94783.0,0.00158226]
[1739898346865,0.4526,94788.0,94783.0,0.00158226]
[1739898347764,0.2207,94787.0,94783.0,0.00158226]
[1739898348951,0.5815,94787.0,94783.0,0.00158226]
[1739898349163,0.2110651,94784.0,94783.0,0.00158226]
[1739898349353,0.2110761,94780.0,94776.0,0.00015828]
[1739898349556,0.3608,94777.0,94776.0,0.00015828]
[1739898350861,0.3608,94777.0,94755.0,0.4533]
[1739898351069,0.3608,94766.0,94763.0,0.2111117]
[1739898351263,0.3608,94766.0,94761.0,0.92012]
[1739898351958,0.3608,94766.0,94761.0,1.131236]
[1739898352465,0.3608,94766.0,94764.0,0.19937983]
[1739898355368,0.00015828,94774.0,94772.0,0.2110918]
[1739898355571,0.00015828,94774.0,94772.0,0.5718918]
[1739898355871,0.00015828,94774.0,94773.0,0.6975]
[1739898356056,0.02687,94778.0,94777.0,0.2110807]
[1739898357366,0.02687,94778.0,94777.0,0.2120807]
[1739898358065,0.02687,94778.0,94777.0,0.001]
[1739898358868,0.235,94785.0,94775.0,0.2110849]
[1739898359667,0.003,94778.0,94773.0,0.6975]
[1739898359874,0.3608,94777.0,94773.0,0.6975]
[1739898360471,0.003,94785.0,94784.0,0.2110651]
[1739898360666,0.003,94785.0,94779.0,0.2110759]
[1739898360863,0.003,94785.0,94775.0,0.00015828]
[1739898361467,0.3608,94778.0,94775.0,0.00015828]
[1739898361977,0.37329705,94778.0,94775.0,0.00015828]
[1739898362175,0.2110829,94776.0,94775.0,0.00015828]
[1739898362573,0.3,94776.0,94735.0,0.92134277]
[1739898362875,0.3608,94749.0,94737.0,0.31508099]
[1739898363075,0.3608,94738.0,94737.0,0.31508099]
[1739898363769,0.3548,94738.0,94737.0,0.31508099]
[1739898364671,0.3548,94738.0,94737.0,0.28817099]
[1739898365977,0.5849,94738.0,94737.0,0.28817099]
[1739898366480,0.5849,94738.0,94737.0,0.28917099]
[1739898366880,0.5849,94738.0,94728.0,0.00015828]
[1739898366881,0.211177,94734.0,94728.0,0.00015828]
[1739898367083,0.3608,94729.0,94728.0,0.00015828]
[1739898368274,0.37125203,94729.0,94728.0,0.00015828]
[1739898368782,0.3648,94729.0,94728.0,0.00015828]
[1739898369482,0.5769877,94729.0,94728.0,0.00015828]
[1739898369882,0.5699877,94729.0,94728.0,0.00015828]
[1739898370071,0.5769877,94729.0,94728.0,0.00015828]
[1739898370779,0.3658,94729.0,94728.0,0.00015828]
[1739898371371,0.5763,94729.0,94705.0,0.2402]
[1739898371575,0.5763,94729.0,94700.0,0.22853743]
[1739898371576,0.3598,94711.0,94700.0,0.22853743]
[1739898371879,0.3598,94711.0,94700.0,0.1]
[1739898372185,0.5700282,94711.0,94701.0,0.22992123]
[1739898372384,0.5700282,94711.0,94701.0,0.01042123]
[1739898372574,0.5700282,94711.0,94700.0,0.1]
[1739898372884,0.3588,94711.0,94700.0,0.22853743]
[1739898373084,0.3588,94711.0,94700.0,0.23916894]
[1739898373578,0.3588,94711.0,94700.0,0.11063151]
[1739898373879,0.3608,94703.0,94700.0,0.11063151]
[1739898375693,0.3608,94703.0,94701.0,0.2112495]
[1739898376688,0.3588,94711.0,94700.0,0.11063151]
[1739898376890,0.3588,94711.0,94700.0,0.23916894]
[1739898377187,0.3588,94711.0,94709.0,0.2112319]
[1739898377389,0.3588,94711.0,94710.0,0.4492]
[1739898377685,0.3588,94711.0,94710.0,0.57904]
[1739898378388,0.3618,94711.0,94710.0,0.57904]
[1739898378692,0.3618,94711.0,94710.0,0.12984]
[1739898379382,0.3618,94711.0,94710.0,0.34107]
[1739898379576,0.3618,94711.0,94710.0,0.21123]
[1739898380579,0.3618,94711.0,94705.0,0.2112408]
[1739898380781,0.3588,94711.0,94704.0,0.2197]
[1739898381184,0.3588,94711.0,94708.0,0.2112344]
[1739898381781,0.3588,94711.0,94710.0,0.21123]
[1739898381977,0.5798,94737.0,94709.0,0.3608]
[1739898382188,0.3608,94746.0,94732.0,0.2111789]
[1739898382688,0.3608,94746.0,94733.0,0.2293]
[1739898382988,0.3608,94746.0,94736.0,0.12853743]
[1739898383679,0.3608,94746.0,94733.0,0.23790126]
[1739898385083,0.3608,94738.0,94733.0,0.23790126]
[1739898385480,0.3608,94738.0,94733.0,0.00860126]
[1739898385690,0.3608,94738.0,94730.0,0.00015837]
[1739898385988,0.2111729,94736.0,94730.0,0.00015837]
[1739898386589,1.04166001,94737.0,94730.0,0.00015837]
[1739898386784,1.0407,94737.0,94730.0,0.00015837]
[1739898387386,0.02638,94736.0,94730.0,0.00844783]
[1739898387786,0.02638,94736.0,94733.0,0.3608]
[1739898387992,0.02638,94736.0,94735.0,0.2111743]
[1739898388789,0.02838,94736.0,94735.0,0.2111743]
[1739898389794,0.02838,94736.0,94734.0,0.4573]
[1739898390195,0.02638,94736.0,94734.0,0.4573]
[1739898390395,0.02738,94736.0,94734.0,0.4573]
[1739898390694,0.3608,94735.0,94730.0,0.00844783]
[1739898391693,0.6891,94734.0,94730.0,0.00844783]
[1739898393594,0.6951,94734.0,94730.0,0.00944783]
[1739898394190,0.6891,94734.0,94730.0,0.00844783]
[1739898394391,0.6911,94734.0,94730.0,0.00844783]
[1739898394798,0.6951,94734.0,94730.0,0.00944783]
[1739898396203,0.4564,94734.0,94730.0,0.00944783]
[1739898396494,0.006,94734.0,94730.0,0.00944783]
[1739898396704,0.00169184,94732.0,94730.0,0.22063193]
[1739898396902,0.00169184,94732.0,94730.0,0.21963193]
[1739898397101,0.00169184,94732.0,94730.0,0.22063193]
[1739898397304,0.00169184,94732.0,94730.0,0.00944783]
[1739898397509,0.00169184,94732.0,94730.0,0.00844783]
[1739898397816,0.00169184,94731.0,94730.0,0.00844783]
[1739898398806,0.00169184,94731.0,94730.0,0.58043323]
[1739898399211,0.02638,94736.0,94735.0,0.2111743]
[1739898402513,0.02782783,94736.0,94735.0,0.2111743]
[1739898402720,0.03282783,94736.0,94735.0,0.2111743]
[1739898403607,0.2252,94757.0,94735.0,0.5719743]
[1739898403814,0.3608,94775.0,94748.0,0.3608]
[1739898404119,0.7041,94774.0,94764.0,0.2111094]
[1739898404318,0.70514001,94774.0,94764.0,0.2111094]
[1739898404511,0.00104001,94774.0,94765.0,0.2111063]
[1739898404711,0.3608,94775.0,94766.0,0.2314]
[1739898404916,0.21773655,94780.0,94766.0,0.2314]
[1739898405109,0.19480075,94767.0,94766.0,0.5922]
[1739898405413,0.00015811,94775.0,94773.0,0.2110878]
[1739898405611,0.21773655,94780.0,94774.0,0.3608]
[1739898405817,0.21773655,94780.0,94778.0,0.2110764]
[1739898406207,0.18635871,94785.0,94778.0,0.2110764]
[1739898406910,0.003,94780.0,94778.0,0.2110764]
[1739898407619,0.18635871,94785.0,94778.0,0.001]
[1739898408014,0.18635871,94785.0,94782.0,0.2110685]
[1739898408413,0.00144726,94784.0,94782.0,0.2110685]
[1739898409016,0.00988726,94784.0,94782.0,0.2110685]
[1739898409523,0.00144726,94783.0,94782.0,0.2110685]
[1739898409726,0.00144726,94783.0,94782.0,0.2120685]
[1739898409925,0.3608,94796.0,94795.0,0.2110406]
[1739898410820,0.00096001,94804.0,94796.0,0.2110377]
[1739898411123,0.3608,94805.0,94796.0,0.2110377]
[1739898411811,0.3608,94805.0,94795.0,0.12853743]
[1739898412013,0.3608,94805.0,94800.0,0.2110283]
[1739898412420,0.3608,94805.0,94795.0,0.12953743]
[1739898412829,0.3608,94805.0,94795.0,0.33957703]
[1739898413032,0.3608,94805.0,94795.0,0.12953743]
[1739898413322,0.3608,94805.0,94795.0,0.34057743]
[1739898414327,0.3608,94805.0,94796.0,0.2110374]
[1739898414820,0.00119542,94801.0,94796.0,0.2110374]
[1739898415924,0.00119542,94799.0,94796.0,0.2110374]
[1739898416124,0.00119542,94799.0,94796.0,0.2120374]
[1739898416420,0.00119542,94799.0,94796.0,0.2110374]
[1739898416724,0.00119542,94799.0,94796.0,0.2120374]
[1739898416925,0.00119542,94798.0,94796.0,0.2120374]
[1739898417729,0.00119542,94798.0,94794.0,0.00834289]
[1739898418028,0.00119542,94796.0,94791.0,0.36095829]
[1739898418724,0.36199542,94796.0,94791.0,0.00845174]
[1739898418930,0.00119542,94794.0,94791.0,0.00845174]
[1739898420127,0.66666001,94795.0,94791.0,0.00845174]
[1739898420329,0.00119542,94793.0,94791.0,0.00845174]
[1739898420931,0.00119542,94793.0,94792.0,0.2110473]
[1739898421118,0.00119542,94793.0,94792.0,0.7928473]
[1739898421425,0.3608,94805.0,94798.0,0.2110328]
[1739898421726,0.3608,94805.0,94795.0,0.12853743]
[1739898421930,0.1700139,94805.0,94795.0,0.12853743]
[1739898422119,0.2253,94804.0,94795.0,0.12853743]
[1739898422321,0.6897,94804.0,94795.0,0.12853743]
[1739898422518,0.2110254,94802.0,94792.0,0.3608]
[1739898422725,0.6897,94804.0,94791.0,0.00845174]
[1739898422726,0.3608,94793.0,94791.0,0.00845174]
[1739898424735,0.69066001,94804.0,94796.0,0.2110383]
[1739898424926,0.6897,94804.0,94799.0,0.2110303]
[1739898425227,0.6897,94804.0,94794.0,0.48933743]
[1739898425531,0.6897,94804.0,94801.0,0.2110259]
[1739898425733,0.6897,94804.0,94795.0,0.211039]
[1739898425931,0.6897,94804.0,94798.0,0.2110331]
[1739898426330,0.6897,94804.0,94794.0,0.48933743]
[1739898426532,0.6897,94804.0,94794.0,0.70038013]
[1739898427030,0.6897,94804.0,94794.0,0.3608]
[1739898427237,0.6897,94804.0,94794.0,0.5718419]
[1739898428741,0.6897,94804.0,94794.0,0.3608]
[1739898429037,0.6897,94804.0,94797.0,0.2110361]
[1739898430337,0.6897,94804.0,94794.0,0.3608]
[1739898430928,0.6897,94804.0,94798.0,0.2110339]
[1739898431234,0.53933612,94804.0,94794.0,0.3608]
[1739898432036,0.3608,94795.0,94791.0,0.00015829]
[1739898433234,0.3608,94795.0,94791.0,0.00849188]
[1739898433931,0.3608,94795.0,94791.0,0.00015829]
[1739898434134,0.5718473,94792.0,94791.0,0.00015829]
[1739898434332,0.12853743,94790.0,94772.0,0.00158253]
[1739898434538,0.3608,94779.0,94772.0,0.00158253]
[1739898434738,0.3608,94779.0,94760.0,0.33965383]
[1739898434938,0.3608,94771.0,94769.0,0.25946525]
[1739898435140,0.2242,94770.0,94769.0,0.25115451]
[1739898436544,0.2297,94770.0,94769.0,0.25115451]
[1739898436729,0.0075,94770.0,94769.0,0.25115451]
[1739898437137,0.05683517,94770.0,94768.0,0.2110989]
[1739898437441,0.05683517,94770.0,94769.0,0.3608]
[1739898437442,0.06083517,94770.0,94769.0,0.3608]
[1739898437735,0.21773655,94783.0,94769.0,0.3608]
[1739898437930,0.21773655,94783.0,94782.0,0.5718696]